fUSD/lending_fUSD_20250524
["ID","MTS","AMOUNT","RATE_DAILY","PERIOD"]
[362169919,1748052640040,-16193.04858974,0.00029518,3]
[362169922,1748052640052,-9520.0,0.00029518,3]
[362169930,1748052640126,-26633.52587295,0.00029518,3]
[362169933,1748052640138,-5705.67880457,0.00029518,3]
[362169937,1748052640181,-875.05000043,0.00029518,3]
[362169938,1748052640236,-641.01223463,0.00029518,3]
[362169939,1748052640247,-3411.8514987,0.00029518,3]
[362169940,1748052640259,-21278.74410741,0.00029518,3]
[362169941,1748052640291,-312.54093169,0.00029518,3]
[362170179,1748052642915,-6015.00808004,0.00029518,3]
[362170191,1748052643024,-895.04361364,0.00029518,3]
[362170199,1748052643085,-14839.77163422,0.00029518,3]
[362170201,1748052643096,-12101.77833869,0.00029518,3]
[362170205,1748052643131,-456.21723497,0.00029518,3]
[362170288,1748052645758,-430.63108234,0.00029518,3]
[362170289,1748052645771,-987.39889615,0.00029518,3]
[362170290,1748052645915,-144769.21754991,0.00029518,3]
[362170291,1748052646023,-604.0,0.00029518,3]
[362170292,1748052646035,-21478.99999999,0.00029518,3]
[362170469,1748052648401,1000.0,0.00027397,120]
[362170786,1748053083255,-159.45,0.0002,3]
[362170787,1748053083278,-7.18995433,0.00022,2]
[362170788,1748053085787,-198.18074467,0.00022,2]
[362170789,1748053088277,-44.629301,0.00022,2]
[362170790,1748053088300,-151.18430139,0.000225,2]
[362170791,1748053090686,-98.81569861,0.000225,2]
[362170793,1748053303939,-180.57573884,0.0002,2]
[362170794,1748053307551,-238.851,0.0002,2]
[362170795,1748053310304,-165.02713002,0.0002,2]
[362170796,1748053312876,-168.75,0.0002,2]
[362170797,1748053315435,-284.28,0.0002,2]
[362170798,1748053317621,-212.05915832,0.0002,2]
[362170801,1748053411226,250.0,0.00015,2]
[362170802,1748053464256,159.4,0.00013699,2]
[362170803,1748053509499,-162.91426321,0.0002,2]
[362170804,1748053513978,-192.70470849,0.0002,2]
[362170805,1748053516019,-205.0,0.0002,2]
[362170806,1748053518295,-223.14565518,0.0002,2]
[362170807,1748053519655,-201.0,0.0002,2]
[362170808,1748053521973,-175.85434482,0.0002,2]
[362170809,1748053535122,-241.77396956,0.00019999,2]
[362170810,1748053537097,-58.22603044,0.00019999,2]
[362170811,1748053537119,-890.51866161,0.0002,2]
[362170812,1748053567307,938.28742066,8e-05,2]
[362170813,1748053593096,-228.29318579,0.000199,2]
[362170814,1748053632094,-822.04275612,0.000199,3]
[362170815,1748053633241,-484.86231307,0.000199,3]
[362170816,1748053633263,-509.46903442,0.00019973,2]
[362170817,1748053633283,-289.72714579,0.00019973,2]
[362170818,1748053643084,-720.52040998,0.000198,2]
[362170819,1748053648087,-129.46466502,0.000198,2]
[362170820,1748053648108,-33.02723699,0.00019973,2]
[362170821,1748053648140,-177.89474899,0.00019973,2]
[362170822,1748053648161,-506.45626518,0.00019973,2]
[362170823,1748053648182,-502.68523319,0.00019973,2]
[362170824,1748053648204,-303.0,0.00019999,2]
[362170825,1748053648228,-263.88862953,0.00019999,2]
[362170829,1748053769079,-155.79428203,0.00019973,2]
[362170830,1748053769099,-162.05860874,0.00019973,2]
[362170831,1748053769120,-515.43078265,0.00019973,2]
[362170832,1748053769141,-236.11137047,0.00019999,2]
[362170833,1748053769161,-500.0,0.00019999,2]
[362170834,1748053769181,-345.87312555,0.00019999,2]
[362170835,1748053769202,-1108.2630069,0.0002,2]
[362170853,1748053831950,-300.0,0.00019999,2]
[362170855,1748053831962,-1200.0,0.00019999,2]
[362170856,1748053831972,-73.54254,0.0002,2]
[362170857,1748053832003,-928.44364022,0.0002,2]
[362170858,1748053832113,-11775.891396,0.0002,2]
[362170859,1748053832125,-691.65929644,0.0002,2]
[362170860,1748053832223,-2029.47524166,0.0002,2]
[362170861,1748053832235,-5558.83370753,0.0002,2]
[362170871,1748053837939,-300.0,0.00019999,2]
[362170872,1748053837950,-822.9312622,0.0002,2]
[362170873,1748053837962,-476.43552863,0.0002,2]
[362170874,1748053837993,-4174.77374053,0.0002,2]
[362170875,1748053838105,-5023.06207159,0.0002,2]
[362170894,1748053840114,-1652.77360846,0.0002,2]
[362170895,1748053840221,-1155.00000005,0.0002,2]
[362170896,1748053840233,-6921.12966114,0.0002,2]
[362170898,1748053840280,-1488.87600022,0.0002,2]
[362170899,1748053840331,-10561.03013778,0.0002,2]
[362170900,1748053840343,-50418.33330051,0.0002,2]
[362170904,1748053840600,-0.00777489,0.0002,2]
[362170907,1748053843018,-19201.00364338,0.0002,2]
[362170908,1748053843073,-254.01999999,0.0002,2]
[362170909,1748053843129,-780.96834402,0.0002,2]
[362170910,1748053843183,-4540.0,0.0002,2]
[362170911,1748053843240,-8058.0440651,0.0002,2]
[362170912,1748053843253,-7658.07472165,0.0002,2]
[362170917,1748053845987,-1556.157903,0.0002,2]
[362170918,1748053846000,-608.78929597,0.0002,2]
[362170919,1748053846014,-4619.30309772,0.0002,2]
[362170920,1748053846154,-10887.44312921,0.0002,2]
[362170921,1748053846166,-1967.25114923,0.0002,2]
[362170922,1748053846211,-664.58354201,0.0002,2]
[362170923,1748053846223,-784.9815,0.0002,2]
[362170924,1748053846236,-1414.157248,0.0002,2]
[362170925,1748053846249,-545.152395,0.0002,2]
[362170926,1748053846262,-873.2650675,0.0002,2]
[362170927,1748053846275,-472.95900005,0.0002,2]
[362170928,1748053846288,-109005.98505692,0.0002,2]
[362170929,1748053846306,-5526.53851653,0.0002,2]
[362170930,1748053846319,-1125.30532543,0.0002,2]
[362170931,1748053846332,-570.79671837,0.0002,2]
[362171533,1748053894957,204.51,0.00026861,120]
[362171541,1748054584953,159.4,0.00013699,2]
[362171558,1748054739102,-300.0,0.00019998,2]
[362171559,1748054739125,-300.0,0.00019998,2]
[362171560,1748054739147,-107.4209971,0.00019999,2]
[362171561,1748054799179,204.74,0.00016712,2]
[362171562,1748054825128,-300.0,0.00019998,2]
[362171563,1748054825149,-188.71476575,0.00019999,2]
[362171564,1748054829118,-186.31727612,0.00019999,2]
[362171565,1748054830098,-38.92673218,0.00019999,2]
[362171566,1748054830119,-3940.98926777,0.00019999,2]
[362171567,1748054830141,-156.61231469,0.00019999,2]
[362171568,1748054830164,-2224.02061241,0.0002,2]
[362171569,1748054836109,-894.5160809,0.0002,2]
[362171570,1748054836142,-1179.35370873,0.0002,2]
[362171571,1748054848093,-230.21828235,0.00019999,2]
[362171572,1748054886905,2477.35155621,0.00017105,2]
[362171573,1748054888600,-315.27128866,0.00017105,2]
[362171574,1748054890472,-169.51201583,0.00017105,2]
[362171575,1748054892634,-160.8651393,0.00017105,2]
[362171576,1748054905342,535.57,0.00025112,120]
[362171577,1748054967119,-173.10988381,0.000199,2]
[362171578,1748054967140,-451.44913997,0.00019973,2]
[362171579,1748054969097,-48.55086003,0.00019973,2]
[362171580,1748054969121,-342.37235636,0.00019999,2]
[362171583,1748054997987,-4041.02568861,0.00019999,2]
[362171584,1748054998011,-40215.97431139,0.0002,2]
[362171586,1748055032357,-262.74592848,0.00019999,2]
[362171587,1748055032410,-37.25407152,0.00019999,2]
[362171588,1748055032420,-647.7590844,0.00019999,2]
[362171589,1748055032430,-500.0,0.00019999,2]
[362171590,1748055032439,-500.0,0.00019999,2]
[362171591,1748055032449,-500.0,0.00019999,2]
[362171592,1748055032459,-12.15145053,0.00019999,2]
[362172157,1748055038301,-300.0,0.00019998,2]
[362172159,1748055038311,-487.84854947,0.00019999,2]
[362172161,1748055038320,-333.84058049,0.00019999,2]
[362172167,1748055038368,-166.15941951,0.00019999,2]
[362172169,1748055038378,-500.0,0.00019999,2]
[362172171,1748055038387,-500.0,0.00019999,2]
[362172173,1748055038396,-500.0,0.00019999,2]
[362172175,1748055038406,-500.0,0.00019999,2]
[362172177,1748055038415,-500.0,0.00019999,2]
[362172179,1748055038424,-500.0,0.00019999,2]
[362172181,1748055038434,-311.30246032,0.00019999,2]
[362172183,1748055038443,-38359.23474503,0.0002,2]
[362172366,1748055040343,-1229.82421026,0.0002,2]
[362172387,1748055040551,-19402.48629957,0.0002,2]
[362172399,1748055040657,-124494.75075305,0.0002,2]
[362172406,1748055040712,-924.5589717,0.0002,2]
[362172408,1748055040723,-2164.215192,0.0002,2]
[362172410,1748055040736,-8727.80016791,0.0002,2]
[362172413,1748055040748,-742.59466743,0.0002,2]
[362172415,1748055040759,-8128.85675804,0.0002,2]
[362172422,1748055040819,-9407.19625015,0.0002,2]
[362172617,1748055043320,-50089.41034911,0.0002,2]
[362172624,1748055043373,-383.20020393,0.0002,2]
[362172631,1748055043444,-6.18723296,0.0002,2]
[362172635,1748055043482,-5917.99149128,0.0002,2]
[362172636,1748055043503,-516.04000001,0.0002,2]
[362172637,1748055043537,-296.16912852,0.0002,2]
[362172638,1748055043591,-15410.17562609,0.0002,2]
[362172639,1748055043603,-3485.83888003,0.0002,2]
[362172640,1748055043614,-8517.24532099,0.0002,2]
[362172673,1748055046093,-1106.20356226,0.0002,2]
[362172674,1748055046104,-2866.08229076,0.0002,2]
[362172675,1748055046199,-1954.50918238,0.0002,2]
[362172676,1748055046211,-723.73,0.0002,2]
[362172677,1748055046224,-43072.99999999,0.0002,2]
[362172678,1748055046252,-7825.35953012,0.0002,2]
[362172679,1748055046313,-45692.30197958,0.0002,2]
[362172680,1748055046323,-3546.89034102,0.00020299,2]
[362172681,1748055046333,-156.61231469,0.00020399,2]
[362172682,1748055046344,-167.59646349,0.00020499,2]
[362172683,1748055046354,-200.0,0.00020599,2]
[362172684,1748055046363,-151.0,0.00020817,2]
[362172685,1748055046618,-200.0,0.00021146,2]
[362172686,1748055046628,-183.07,0.00021197,2]
[362172688,1748055046638,-1159.02,0.00021374,2]
[362172690,1748055046647,-153.76821073,0.000216,5]
[362172691,1748055046656,-4613.61632732,0.00021655,2]
[362172692,1748055046666,-153.76821055,0.00021659,5]
[362172693,1748055046675,-180.0,0.00021776,2]
[362172694,1748055046685,-420.0,0.00021777,2]
[362172696,1748055046695,-500.0,0.00021918,2]
[362172698,1748055046704,-276.49840933,0.00021918,2]
[362172700,1748055046714,-3546.89034097,0.00021921,2]
[362172702,1748055046723,-200.0,0.00022,2]
[362172704,1748055046732,-200.0,0.00022,2]
[362172706,1748055046744,-250.0,0.00022021,2]
[362172708,1748055046753,-176.59865078,0.0002208,2]
[362172710,1748055046768,-378.43528873,0.0002208,2]
[362172712,1748055046780,-269.24704914,0.0002208,2]
[362172715,1748055046791,-684.68901135,0.0002208,2]
[362172717,1748055046800,-606.06,0.00022159,2]
[362172719,1748055046810,-535.81509547,0.00022276,2]
[362172721,1748055046822,-464.18490453,0.00022276,2]
[362172723,1748055046831,-227.98547902,0.00022322,2]
[362172773,1748055145286,-254.52399917,0.00022322,2]
[362172774,1748055147377,-53.06052181,0.00022322,2]
[362172775,1748055147402,-150.0,0.00022363,7]
[362172776,1748055147427,-150.94347819,0.00022382,2]
[362172777,1748055150772,-228.6042519,0.00022382,2]
[362172778,1748055152715,-57.95226991,0.00022382,2]
[362172779,1748055152740,-125.64947819,0.00022395,2]
[362172780,1748055156277,-167.89052181,0.00022395,2]
[362172781,1748055156306,-39.51281119,0.00022415,2]
[362172782,1748055213463,250.0,0.00015,2]
[362172783,1748055669863,1500.0,0.00024991,120]
[362172784,1748055816192,329.72,0.00027397,120]
[362172785,1748055816618,159.4,0.00013699,2]
[362172786,1748055948126,-183.07,0.0002017,2]
[362172787,1748055948147,-989.18078678,0.00022,2]
[362172788,1748055948168,-200.0,0.00022187,2]
[362172789,1748055948188,-210.92116854,0.0002235,2]
[362172790,1748055999109,-206.0,0.00019802,2]
[362172791,1748055999130,-18.82318197,0.0002,2]
[362172792,1748056025094,-1042.58142749,0.0002,2]
[362172793,1748056030081,-166.36803297,0.000199,2]
[362172794,1748056032123,-277.85762609,0.000199,2]
[362172795,1748056041084,-201.95151994,0.000199,2]
[362172796,1748056041109,-749.86954642,0.0002,2]
[362172797,1748056045093,-645.26251202,0.0002,2]
[362172798,1748056049121,-1058.05874409,0.0002,2]
[362172799,1748056058343,163.6,0.00025128,120]
[362172801,1748056157931,172.72208922,0.00017,2]
[362172802,1748056157953,2432.09155621,0.00017,2]
[362172803,1748056157980,2841.49155621,0.00017,2]
[362172804,1748056158002,2841.49155621,0.00017,2]
[362172805,1748056158023,2841.49155621,0.00017,2]
[362172806,1748056158047,2841.49155621,0.00017,2]
[362172807,1748056158071,2841.49155621,0.00017,2]
[362172808,1748056158093,2841.49155621,0.00017,2]
[362172809,1748056158114,2841.49155621,0.00017,2]
[362172810,1748056158142,2841.49155621,0.00017,2]
[362172811,1748056159090,-46937.75366,0.00017,2]
[362172812,1748056159164,-197.98186998,0.00017,2]
[362172813,1748056161215,-171.90880461,0.00017,2]
[362172814,1748056163070,-7860.605578,0.00017,2]
[362172815,1748056163110,-297979.7212,0.00017,2]
[362172816,1748056163281,-170.48296413,0.00017,2]
[362172817,1748056167083,-99625.46799393,0.00017,2]
[362172818,1748056168312,-223.78096518,0.00017,2]
[362172819,1748056169725,-214.15741439,0.00017,2]
[362172820,1748056171235,-214.26258561,0.00017,2]
[362172821,1748056173296,-211.25783763,0.00017,2]
[362172822,1748056174076,-33208.68082,0.00017,2]
[362172823,1748056174754,-290.85797411,0.00017,2]
[362172824,1748056177911,-420.0,0.00017,2]
[362172825,1748056179465,-420.0,0.00017,2]
[362172826,1748056184596,-420.0,0.00017,2]
[362172827,1748056187009,-300.0,0.00017,2]
[362172828,1748056189799,-420.0,0.00017,2]
[362172829,1748056191805,-420.0,0.00017,2]
[362172830,1748056193195,-251.19133878,0.00017,2]
[362172831,1748056198238,-191.93480907,0.00017,2]
[362172833,1748056232345,-300.0,0.00016999,2]
[362172834,1748056232355,-67.8080003,0.00017,2]
[362172835,1748056232450,-1722.0821,0.00017,2]
[362172836,1748056232464,-26672.7276807,0.00017,2]
[362172837,1748056232558,-37073.32281751,0.00017,2]
[362172838,1748056232572,-7251.75143385,0.00017,2]
[362172839,1748056235345,-268.0,0.00016999,2]
[362172840,1748056238296,-32.0,0.00016999,2]
[362172841,1748056238305,-645.70027337,0.00016999,2]
[362172842,1748056238315,-395.60472663,0.00017,2]
[362172843,1748056238351,-21925.77815351,0.00017,2]
[362172848,1748056238655,-1000.0,0.00017,2]
[362172851,1748056238666,-492.50919716,0.00017,2]
[362172853,1748056238677,-681.89753604,0.00017,2]
[362172873,1748056240440,-1450.33097766,0.00017,2]
[362172874,1748056240451,-18312.90469127,0.00017,2]
[362172875,1748056240462,-37353.88542341,0.00017,2]
[362172876,1748056240473,-31160.00993944,0.00017,2]
[362172877,1748056240482,-420.0,0.00018567,2]
[362172878,1748056240491,-2864.53046096,0.00019899,2]
[362172879,1748056240501,-587.0,0.00020279,2]
[362172880,1748056240511,-205.0242808,0.000215,5]
[362172881,1748056240520,-205.02428073,0.000215,5]
[362172882,1748056240529,-205.02428073,0.000215,5]
[362172883,1748056240538,-2864.53046092,0.00021566,2]
[362172884,1748056240548,-167.59646343,0.00021677,2]
[362172885,1748056240557,-200.0,0.00022,2]
[362172886,1748056240566,-823.0,0.00022149,2]
[362172887,1748056240575,-44.23127296,0.0002235,2]
[362172888,1748056240584,-2018.22,0.00022415,2]
[362172889,1748056240593,-400.65267,0.0002245,2]
[362172890,1748056240604,-205.02428073,0.000225,7]
[362172891,1748056240614,-14800.730688,0.00022734,2]
[362172892,1748056240623,-364.45,0.00022846,2]
[362172893,1748056240633,-150.0,0.00022846,2]
[362172894,1748056240645,-187.34472027,0.00022899,2]
[362172895,1748056240655,-192.76772674,0.00022899,2]
[362172896,1748056240666,-543.54888653,0.00022899,2]
[362172897,1748056240676,-1542.96722196,0.000229,5]
[362172898,1748056240956,-1468.03277804,0.000229,5]
[362172899,1748056240966,-250.5121072,0.00023002,2]
[362172900,1748056240976,-2751.0,0.00023024,2]
[362172901,1748056240986,-1250.93,0.00023108,2]
[362172902,1748056240996,-2864.53046092,0.00023233,2]
[362172903,1748056241006,-158.22,0.00023316,2]
[362172904,1748056241015,-205.02428073,0.000237,9]
[362172905,1748056241026,-206.0,0.00023822,7]
[362172906,1748056241036,-167.59646343,0.00024121,2]
[362172907,1748056241045,-1152.0,0.00024192,2]
[362172908,1748056241055,-167.26,0.000244,2]
[362172909,1748056241064,-200.0,0.00024585,2]
[362172910,1748056241074,-23900.0,0.00024774,2]
[362172911,1748056241085,-502.51864749,0.00024873,2]
[362172912,1748056241095,-1699.07448486,0.00024899,2]
[362172913,1748056241106,-1165.45597606,0.00024899,2]
[362172914,1748056241115,-700.0,0.000249,9]
[362172915,1748056241125,-637.74018908,0.000249,3]
[362172916,1748056241136,-3035.63965819,0.000249,3]
[362172917,1748056241149,-947.72946,0.000249,3]
[362172920,1748056243473,-73930.17505283,0.000249,3]
[362172921,1748056243483,-205.02428073,0.000249,12]
[362172922,1748056243493,-1000.0,0.00024983,2]
[362172923,1748056243503,-19637.82109,0.0002499,3]
[362172924,1748056243512,-8188.163392,0.00025,2]
[362172925,1748056243521,-1302.13,0.00025002,2]
[362172926,1748056243531,-279.71,0.00025037,2]
[362172927,1748056243540,-200.0,0.0002504,2]
[362172928,1748056243550,-21233.83150359,0.00025051,2]
[362172929,1748056243561,-150.0,0.0002508,7]
[362172930,1748056243570,-158.89,0.00025096,2]
[362172931,1748056243580,-460.48,0.00025111,2]
[362172932,1748056243590,-177.07,0.00025126,2]
[362172933,1748056243600,-250.0,0.0002519,2]
[362172934,1748056243609,-150.0,0.0002519,2]
[362172935,1748056243619,-150.0,0.0002519,2]
[362172936,1748056243629,-500.0,0.0002519,2]
[362172937,1748056243638,-500.0,0.0002519,2]
[362172938,1748056243648,-150.0,0.00025217,2]
[362172939,1748056243657,-200.76817961,0.00025217,2]
[362172940,1748056243667,-500.0,0.00025217,2]
[362172941,1748056243677,-500.0,0.00025217,2]
[362172942,1748056243686,-150.0,0.00025245,2]
[362172943,1748056243695,-538.29506863,0.00025245,2]
[362172945,1748056243704,-226.70029532,0.00025245,2]
[362172947,1748056243713,-500.0,0.00025245,2]
[362172949,1748056243723,-159.41364732,0.00025245,2]
[362172950,1748056243733,-150.0,0.00025245,2]
[362172951,1748056243743,-500.0,0.00025245,2]
[362172952,1748056243753,-1082.43,0.00025246,2]
[362172953,1748056243763,-150.0,0.00025272,2]
[362172954,1748056243777,-629.8998764,0.00025272,2]
[362172955,1748056243787,-150.0,0.00025272,2]
[362172956,1748056243797,-500.0,0.00025272,2]
[362172957,1748056243810,-150.0,0.000253,2]
[362172958,1748056243820,-150.0,0.000253,2]
[362172959,1748056243830,-268.46340723,0.000253,2]
[362172960,1748056243840,-162.0672019,0.00025327,2]
[362172962,1748056243851,-274.68043751,0.00025327,2]
[362172963,1748056243861,-1250.93,0.00025372,2]
[362172964,1748056243870,-189.42,0.0002558,2]
[362172965,1748056243880,-527.03677971,0.00025625,2]
[362172966,1748056243889,-19637.82109,0.00025751,3]
[362172967,1748056243899,-250.0,0.00025761,2]
[362172968,1748056243908,-2522.246,0.00025914,2]
[362172969,1748056243918,-163.944,0.00025914,2]
[362172970,1748056243928,-772.678,0.00025914,2]
[362172971,1748056243938,-205.02428073,0.000261,14]
[362172972,1748056243948,-805.83,0.00026301,2]
[362172973,1748056243958,-156.95586855,0.00026409,2]
[362172974,1748056243967,-361.86928546,0.00026409,2]
[362172975,1748056243977,-1517.0,0.00026423,2]
[362172976,1748056243987,-167.59646343,0.00026566,2]
[362172977,1748056243998,-2864.53046092,0.00026566,2]
[362172978,1748056244007,-211.0,0.0002672,2]
[362172979,1748056244017,-501.07865132,0.00026773,2]
[362172980,1748056244026,-12957.1676913,0.00026781,7]
[362172981,1748056244035,-208.12386556,0.00026781,7]
[362172982,1748056244044,-669.34638437,0.00026781,7]
[362172983,1748056244054,-200.0,0.00026861,2]
[362172984,1748056244063,-200.0,0.00026861,2]
[362172985,1748056244072,-284.351,0.0002693,2]
[362172986,1748056244082,-238.851,0.0002693,2]
[362172987,1748056244091,-213.331,0.0002693,2]
[362172988,1748056244101,-183.242,0.0002693,2]
[362172989,1748056244110,-200.0,0.0002713,2]
[362172990,1748056244120,-200.0,0.0002713,2]
[362172991,1748056244129,-150.0,0.00027162,2]
[362172992,1748056244138,-1325.107,0.00027172,2]
[362172993,1748056244148,-953.735,0.00027172,2]
[362172994,1748056244157,-154.623,0.00027172,2]
[362172995,1748056244166,-799.0,0.00027172,2]
[362172996,1748056244175,-641.341,0.00027172,2]
[362172997,1748056244184,-1476.457,0.00027172,2]
[362172998,1748056244194,-592.438,0.00027172,2]
[362172999,1748056244206,-559.69,0.00027172,2]
[362173000,1748056244215,-930.702,0.00027172,2]
[362173001,1748056244224,-1288.796,0.00027172,2]
[362173002,1748056244234,-458.45,0.0002726,2]
[362173003,1748056244244,-805.46,0.0002726,2]
[362173004,1748056244253,-458.45,0.0002726,2]
[362173005,1748056244262,-805.83,0.0002726,2]
[362173006,1748056244272,-458.45,0.0002726,2]
[362173007,1748056244282,-805.83,0.0002726,2]
[362173008,1748056244291,-458.45,0.0002726,2]
[362173009,1748056244300,-805.83,0.0002726,2]
[362173010,1748056244310,-458.45,0.0002726,2]
[362173011,1748056244319,-458.45,0.0002726,2]
[362173012,1748056244328,-805.83,0.0002726,2]
[362173013,1748056244337,-805.83,0.0002726,2]
[362173014,1748056244348,-458.45,0.0002726,2]
[362173015,1748056244357,-805.83,0.0002726,2]
[362173016,1748056244367,-805.83,0.0002726,2]
[362173017,1748056244376,-205.02428073,0.000273,16]
[362173018,1748056244386,-207.403333,0.00027397,4]
[362173019,1748056244395,-200.0,0.00027397,2]
[362173020,1748056244404,-420.84320401,0.00027397,2]
[362173021,1748056244414,-420.0,0.00027397,2]
[362173022,1748056244423,-420.36781121,0.00027397,2]
[362173023,1748056244432,-500.0,0.00027397,2]
[362173024,1748056244442,-500.0,0.00027397,2]
[362173025,1748056244451,-500.0,0.00027397,2]
[362173026,1748056244461,-162.06,0.00027397,2]
[362173027,1748056244471,-152.87,0.00027397,2]
[362173028,1748056244481,-200.0,0.00027401,2]
[362173029,1748056244491,-200.0,0.00027401,2]
[362173030,1748056244500,-211.0,0.0002747,2]
[362173031,1748056244509,-250.0,0.000275,2]
[362173032,1748056244519,-150.0,0.000275,2]
[362173033,1748056244529,-420.0,0.00027534,2]
[362173034,1748056244539,-500.0,0.00027625,2]
[362173035,1748056244549,-19637.82109,0.00027626,3]
[362173036,1748056244560,-1250.93,0.00027636,2]
[362173037,1748056244569,-200.0,0.00027671,2]
[362173038,1748056244579,-420.0,0.00027671,2]
[362173039,1748056244590,-200.0,0.00027675,2]
[362173040,1748056244600,-200.0,0.00027675,2]
[362173041,1748056244609,-1500.0,0.000277,10]
[362173042,1748056244620,-160.46427864,0.00027723,5]
[362173043,1748056244631,-2200.0,0.000278,10]
[362173044,1748056244640,-420.0,0.00027808,2]
[362173045,1748056244650,-206.0,0.00027842,13]
[362173046,1748056244660,-3000.0,0.000279,10]
[362173047,1748056244670,-535.57,0.00027902,120]
[362173048,1748056244680,-420.0,0.00027945,2]
[362173049,1748056244689,-340.2,0.00027945,2]
[362173050,1748056244698,-153.38,0.00027945,2]
[362173051,1748056244707,-150.39,0.00027945,2]
[362173052,1748056244717,-2317.04,0.00027945,2]
[362173053,1748056244727,-150.39,0.00027945,2]
[362173054,1748056244736,-150.39,0.00027945,2]
[362173055,1748056244745,-162.87,0.00027945,2]
[362173056,1748056244755,-162.87,0.00027945,2]
[362173057,1748056244765,-162.87,0.00027945,2]
[362173058,1748056244778,-353.3,0.00027945,2]
[362173059,1748056244788,-162.87,0.00027945,2]
[362173060,1748056244797,-162.87,0.00027945,2]
[362173061,1748056244807,-325.7,0.00027945,2]
[362173062,1748056244817,-162.87,0.00027945,2]
[362173063,1748056244826,-200.0,0.00027948,2]
[362173064,1748056244835,-200.0,0.00027952,2]
[362173065,1748056244845,-200.0,0.00027952,2]
[362173066,1748056244854,-420.0,0.00028082,2]
[362173067,1748056244864,-3785.66600791,0.00028098,2]
[362173068,1748056244874,-1000.0,0.00028106,2]
[362173069,1748056244883,-12912.2364754,0.00028178,2]
[362173070,1748056244892,-500.0,0.00028186,2]
[362173071,1748056244902,-500.0,0.00028186,2]
[362173072,1748056244911,-805839.58078783,0.00028187,3]
[362173073,1748056244924,-283.2012423,0.00028187,3]
[362173074,1748056244938,-523.72319935,0.00028187,3]
[362173075,1748056244953,-1825.23928664,0.00028187,3]
[362173078,1748056246412,-11691.43619083,0.00028187,3]
[362173079,1748056246463,-34927.55589046,0.00028187,3]
[362173080,1748056246518,-3495.82280953,0.00028187,3]
[362173081,1748056246530,-21561.0,0.00028187,3]
[362173126,1748056474182,3023.95646261,0.00027397,120]
[362173127,1748057040814,4808.58398678,0.00027397,120]
[362173128,1748057125934,159.0,0.00013699,2]
[362173129,1748057141118,-300.0,0.00019999,2]
[362173130,1748057141147,-715.37478703,0.0002,2]
[362173131,1748057157093,-2071.63131734,0.0002,2]
[362173135,1748057206090,-227.94838207,0.000199,2]
[362173136,1748057233266,-1371.58345547,0.00019899,2]
[362173137,1748057233289,-553.14339621,0.000199,3]
[362173138,1748057234105,-753.76167298,0.000199,3]
[362173139,1748057234127,-500.0,0.00019973,2]
[362173140,1748057234146,-318.3234731,0.00019973,2]
[362173141,1748057241089,-486.67807722,0.00019799,2]
[362173142,1748057248110,-363.65180178,0.00019799,2]
[362173143,1748057248134,-188.13279208,0.00019973,2]
[362173144,1748057248157,-500.0,0.00019973,2]
[362173145,1748057248181,-502.68523319,0.00019973,2]
[362173146,1748057248207,-129.8786603,0.00019999,2]
[362173147,1748057251095,-392.84649844,0.00019999,2]
[362173148,1748057253101,-80.27484126,0.00019999,2]
[362173149,1748057253131,-300.0,0.00019999,2]
[362173150,1748057253158,-263.88862953,0.00019999,2]
[362173151,1748057253185,-306.96986712,0.00019999,2]
[362173152,1748057253215,-8016.260627,0.0002,2]